bitfinex-derivatives/quotes_BTCF0:USTF0_20250527
["timestamp","ask_amount","ask_price","bid_price","bid_amount"]
[1748354756939,0.22603148,109870.0,109860.0,0.60018137]
[1748354757338,0.04408468,109870.0,109860.0,0.40543628]
[1748354757537,0.22603148,109870.0,109860.0,0.3912634]
[1748354757739,0.22703148,109870.0,109860.0,0.4002634]
[1748354757938,0.22703148,109870.0,109860.0,0.4003834]
[1748354758348,0.22703148,109870.0,109860.0,0.41415277]
[1748354758542,0.5129468,109870.0,109860.0,0.52559277]
[1748354758747,0.2329468,109870.0,109860.0,0.52559277]
[1748354759050,0.2339468,109870.0,109860.0,0.54523995]
[1748354759356,0.2339468,109870.0,109860.0,0.54535995]
[1748354759541,0.2339468,109870.0,109860.0,0.53159277]
[1748354759942,0.2339468,109870.0,109860.0,0.54535713]
[1748354760134,0.2339468,109870.0,109860.0,0.54535535]
[1748354760341,0.052,109870.0,109860.0,0.5453554]
[1748354760542,0.002,109870.0,109860.0,0.5453554]
[1748354760749,0.012,109870.0,109860.0,0.5453554]
[1748354760947,0.1939468,109870.0,109860.0,0.5453554]
[1748354761251,0.1939468,109870.0,109860.0,0.55910727]
[1748354761448,0.1939468,109870.0,109860.0,0.54535002]
[1748354761649,0.012,109870.0,109860.0,0.54535002]
[1748354761951,0.002,109870.0,109860.0,0.91990786]
[1748354762350,0.002,109870.0,109860.0,0.91987639]
[1748354762646,0.002,109870.0,109860.0,0.91987389]
[1748354763251,0.002,109870.0,109860.0,0.90615002]
[1748354763549,0.002,109870.0,109860.0,0.91986067]
[1748354763745,0.002,109870.0,109860.0,0.90615002]
[1748354764239,0.1839468,109870.0,109860.0,0.90615002]
[1748354764441,0.1839468,109870.0,109860.0,0.36326662]
[1748354764442,0.9247468,109870.0,109860.0,0.36326662]
[1748354764641,0.6947468,109870.0,109860.0,0.54522992]
[1748354764844,0.7047468,109870.0,109860.0,0.55920088]
[1748354765042,0.3439468,109870.0,109860.0,0.54534992]
[1748354765451,0.3439468,109870.0,109860.0,0.55895891]
[1748354765653,0.3439468,109870.0,109860.0,0.54534992]
[1748354766046,0.3439468,109870.0,109860.0,0.55895712]
[1748354766247,0.7047468,109870.0,109860.0,0.54534992]
[1748354767049,0.7047468,109870.0,109860.0,0.43390992]
[1748354767253,0.69587349,109870.0,109860.0,0.55860074]
[1748354767554,0.68587349,109870.0,109860.0,0.5718957]
[1748354768050,0.32507349,109870.0,109860.0,0.94598983]
[1748354768252,0.32507349,109870.0,109860.0,0.9326957]
[1748354768546,0.3319468,109870.0,109860.0,0.9326957]
[1748354768754,0.3319468,109870.0,109860.0,0.94580165]
[1748354768953,0.3319468,109870.0,109860.0,0.9326957]
[1748354769749,0.3319468,109870.0,109860.0,1.0307957]
[1748354770555,0.3319468,109870.0,109860.0,1.04392658]
[1748354770853,0.3319468,109870.0,109860.0,1.0307957]
[1748354773149,0.3319468,109870.0,109860.0,1.04382376]
[1748354773348,0.3319468,109870.0,109860.0,1.05685112]
[1748354773653,0.3319468,109870.0,109860.0,1.05685114]
[1748354774255,0.3319468,109870.0,109860.0,0.69605114]
[1748354774459,0.9127468,109870.0,109860.0,0.51396784]
[1748354774648,1.0988468,109870.0,109860.0,0.40284784]
[1748354774845,1.0988468,109870.0,109860.0,0.41002784]
[1748354775149,1.0929308,109870.0,109860.0,0.09544784]
[1748354775350,1.0929308,109870.0,109860.0,0.09556784]
[1748354775556,1.0929308,109870.0,109860.0,0.10874414]
[1748354775757,1.0929308,109870.0,109860.0,0.10886414]
[1748354775943,1.0929308,109870.0,109860.0,0.09544784]
[1748354776144,1.0929308,109870.0,109860.0,0.10886712]
[1748354776351,1.0929308,109870.0,109860.0,0.09556784]
[1748354776653,1.0929308,109870.0,109860.0,0.10888957]
[1748354776851,1.0929308,109870.0,109860.0,0.09556784]
[1748354778156,1.0929308,109870.0,109860.0,0.19466784]
[1748354780056,1.0929308,109870.0,109860.0,0.37663104]
[1748354780259,0.5621308,109870.0,109860.0,0.83283104]
[1748354780563,0.4696308,109870.0,109860.0,0.58319104]
[1748354780863,1.2737108,109870.0,109860.0,0.68209104]
[1748354781364,0.9129108,109870.0,109860.0,0.68209104]
[1748354782149,0.58979099,109880.0,109860.0,0.68209104]
[1748354782354,1.61746109,109880.0,109870.0,0.3722466]
[1748354782660,1.61746109,109880.0,109870.0,0.1903]
[1748354782964,0.1819466,109870.0,109860.0,0.38856964]
[1748354783151,1.0999466,109870.0,109860.0,0.57366964]
[1748354783472,0.8799466,109870.0,109860.0,0.57366964]
[1748354783762,1.0899466,109870.0,109860.0,0.46250964]
[1748354784167,1.0899466,109870.0,109860.0,0.46674172]
[1748354784349,1.0899466,109870.0,109860.0,0.46674312]
[1748354784555,1.0899466,109870.0,109860.0,0.19129992]
[1748354784963,1.0899466,109870.0,109860.0,0.09367992]
[1748354785160,1.1848466,109870.0,109860.0,0.09367992]
[1748354785362,1.1848466,109870.0,109860.0,0.09379992]
[1748354785562,1.1858466,109870.0,109860.0,0.10167992]
[1748354785869,1.1858466,109870.0,109860.0,0.10179992]
[1748354786068,1.1858466,109870.0,109860.0,0.10212648]
[1748354786464,1.1868466,109870.0,109860.0,0.0968944]
[1748354786870,1.6300066,109870.0,109860.0,0.2788576]
[1748354787170,1.6300066,109870.0,109860.0,0.4655576]
[1748354787853,1.6299666,109870.0,109860.0,0.4655576]
[1748354788468,1.6299666,109870.0,109860.0,0.47278968]
[1748354788871,1.6299666,109870.0,109860.0,0.4655576]
[1748354790067,1.6299666,109870.0,109860.0,0.47278968]
[1748354790267,1.5350666,109870.0,109860.0,0.47278968]
[1748354790672,1.5350266,109870.0,109860.0,0.47278968]
[1748354791575,0.7247466,109870.0,109860.0,0.47278968]
[1748354791770,1.1677866,109870.0,109860.0,0.47278968]
[1748354792073,0.9877866,109870.0,109860.0,0.48364115]
[1748354792864,1.0884866,109870.0,109860.0,0.48364115]
[1748354793169,0.7376866,109870.0,109860.0,0.48364115]
[1748354793477,0.7376866,109870.0,109860.0,0.59480115]
[1748354793664,1.0876866,109870.0,109860.0,0.59480115]
[1748354793864,1.5473866,109870.0,109860.0,0.59480115]
[1748354794966,0.8465866,109870.0,109860.0,0.59480115]
[1748354796373,1.2072666,109870.0,109860.0,0.59480115]
[1748354796570,1.5072666,109870.0,109860.0,0.59480115]
[1748354796972,1.5072666,109870.0,109860.0,0.20805795]
[1748354797273,1.5072666,109870.0,109860.0,0.0968944]
[1748354797468,1.6007666,109870.0,109860.0,0.0967744]
[1748354797671,1.6007666,109870.0,109860.0,0.0968944]
[1748354797982,1.6007666,109870.0,109860.0,0.1919944]
[1748354798578,1.6007666,109870.0,109860.0,0.0968944]
[1748354799067,1.6007666,109870.0,109860.0,0.0967744]
[1748354799473,1.6007666,109870.0,109860.0,0.0968944]
[1748354799870,1.6007666,109870.0,109860.0,0.10231994]
[1748354800572,1.6007666,109870.0,109860.0,0.15032019]
[1748354800970,1.6007666,109870.0,109860.0,0.10231994]
[1748354801179,1.65665754,109870.0,109860.0,0.10231994]
[1748354801772,1.65665754,109870.0,109860.0,0.0968944]
[1748354802477,1.85135561,109870.0,109860.0,0.0967744]
[1748354802679,1.85135561,109870.0,109860.0,0.0968944]
[1748354803280,0.1819624,109860.0,109850.0,0.00988588]
[1748354803479,1.0829624,109860.0,109850.0,0.00542689]
[1748354803875,1.0829624,109860.0,109850.0,0.00554689]
[1748354804776,1.0829624,109860.0,109850.0,0.01454689]
[1748354804777,1.0839624,109860.0,109850.0,0.01454689]
[1748354805176,1.0849624,109860.0,109850.0,0.29252579]
[1748354805375,1.0849624,109860.0,109850.0,0.11054689]
[1748354805576,1.0849624,109860.0,109850.0,0.09820189]
[1748354806176,0.362,109860.0,109850.0,0.7983899]
[1748354806378,0.7366821,109860.0,109850.0,0.70162391]
[1748354806680,0.7366821,109860.0,109850.0,0.34082391]
[1748354806879,0.112,109860.0,109850.0,0.70162391]
[1748354807071,0.002,109860.0,109850.0,0.89994137]
[1748354807272,0.1839616,109860.0,109850.0,0.89994137]
[1748354808786,0.1839616,109860.0,109850.0,0.4299433]
[1748354809078,0.2748616,109860.0,109850.0,0.7807433]
[1748354809782,0.2748616,109860.0,109850.0,0.4199433]
[1748354810374,0.2948616,109860.0,109850.0,0.4199433]
[1748354810572,0.2948616,109860.0,109850.0,0.62532213]
[1748354811381,0.18206709,109880.0,109870.0,0.1819456]
[1748354811580,0.00013629,109880.0,109870.0,2.08620375]
[1748354811882,0.00013629,109880.0,109870.0,2.35985505]
[1748354812084,0.00013629,109880.0,109870.0,2.46408489]
[1748354812391,0.00013629,109880.0,109870.0,2.35985505]
[1748354812392,0.00113629,109880.0,109870.0,2.35985505]
[1748354812688,0.00113629,109880.0,109870.0,2.36085505]
[1748354813183,0.00113629,109880.0,109870.0,2.41401388]
[1748354813986,0.00113629,109880.0,109870.0,2.51817651]
[1748354814796,0.19306529,109880.0,109870.0,1.42902644]
[1748354814987,0.09633629,109880.0,109870.0,1.85246644]
[1748354815788,0.09633629,109880.0,109870.0,1.86330306]
[1748354816290,0.01113629,109880.0,109870.0,2.05800113]
[1748354816490,0.00113629,109880.0,109870.0,2.23453559]
[1748354816882,0.00113629,109880.0,109870.0,2.11037296]
[1748354817078,0.00113629,109880.0,109870.0,2.13037296]
[1748354817282,0.00113629,109880.0,109870.0,2.35037296]
[1748354817494,0.00113629,109880.0,109870.0,2.24993229]
[1748354818294,0.00113629,109880.0,109870.0,2.02993229]
[1748354818491,0.00113629,109880.0,109870.0,2.26993229]
[1748354819093,0.00113629,109880.0,109870.0,2.31610033]
[1748354821587,0.00113629,109880.0,109870.0,2.26993229]
[1748354821588,9e-08,109880.0,109870.0,2.26993229]
[1748354821788,0.00012,109920.0,109910.0,0.1818793]
[1748354821990,0.18142,109920.0,109910.0,1.02383737]
[1748354822189,0.00012,109920.0,109910.0,1.55709737]
[1748354822494,0.1819827,109920.0,109910.0,0.8383793]
[1748354822698,0.1819827,109920.0,109910.0,0.8291393]
[1748354822699,0.3627827,109920.0,109910.0,0.8291393]
[1748354822899,0.3667827,109920.0,109910.0,0.9113393]
[1748354823591,0.3667827,109920.0,109910.0,0.9114593]
[1748354823892,0.09632,109920.0,109910.0,1.10615737]
[1748354824097,0.01412,109920.0,109910.0,1.52223354]
[1748354824296,0.01912,109920.0,109910.0,1.53210833]
[1748354824496,0.00912,109920.0,109910.0,1.53210833]
[1748354824793,0.00912,109920.0,109910.0,1.52210833]
[1748354825394,0.00912,109920.0,109910.0,1.34462202]
[1748354825592,0.00912,109920.0,109910.0,1.63030009]
[1748354825792,0.00912,109920.0,109910.0,2.07246009]
[1748354825993,0.00912,109920.0,109910.0,2.02638392]
[1748354826598,0.00912,109920.0,109910.0,2.01917216]
[1748354826794,0.00912,109920.0,109910.0,1.64917216]
[1748354827093,0.00912,109920.0,109910.0,1.84638392]
[1748354827492,0.00912,109920.0,109910.0,1.56070585]
[1748354827691,0.00912,109920.0,109910.0,1.75540392]
[1748354829305,0.00912,109920.0,109910.0,1.76157904]
[1748354830206,0.13898696,109960.0,109950.0,0.1818131]
[1748354830207,0.7084378,109960.0,109950.0,0.1818131]
[1748354830387,0.7367474,109960.0,109950.0,0.2922131]
[1748354830798,0.7368674,109960.0,109950.0,0.2922131]
[1748354831402,0.7438674,109960.0,109950.0,0.2932131]
[1748354831600,0.8359674,109960.0,109950.0,0.2942131]
[1748354832694,0.52412,109960.0,109950.0,0.2942131]
[1748354832894,0.09922,109960.0,109950.0,1.92007117]
[1748354833095,0.0991,109960.0,109950.0,1.92007117]
[1748354833996,0.0941,109960.0,109950.0,1.53907117]
[1748354834217,0.0921,109960.0,109950.0,1.09711117]
[1748354834414,0.176,109960.0,109950.0,1.09711117]
[1748354834619,0.175,109960.0,109950.0,1.09711117]
[1748354835015,0.174,109960.0,109950.0,1.09711117]
[1748354835223,0.174,109960.0,109950.0,0.9024131]
[1748354835415,0.174,109960.0,109950.0,1.09711117]
[1748354836014,0.0518744,109960.0,109950.0,1.09711117]
[1748354836323,0.7690051,110000.0,109990.0,0.181747]
[1748354836517,1.1829051,110000.0,109990.0,0.292107]
[1748354836717,1.1830251,110000.0,109990.0,0.292107]
[1748354836909,0.7411851,110000.0,109990.0,0.292107]
[1748354837218,1.1829451,110000.0,109990.0,0.292107]
[1748354837407,1.1829451,110000.0,109990.0,0.293107]
[1748354837408,0.7026324,110000.0,109990.0,0.293107]
[1748354837609,0.2609,110000.0,109990.0,0.293107]
[1748354837814,0.19902,110000.0,109990.0,0.461407]
[1748354838218,0.19902,110000.0,109990.0,0.8355722]
[1748354838512,0.1919,110000.0,109990.0,0.8345722]
[1748354838712,0.1959,110000.0,109990.0,0.8355722]
[1748354838917,0.19602,110000.0,109990.0,0.8355722]
[1748354839121,0.1959,110000.0,109990.0,0.8355722]
[1748354839317,0.28062,110000.0,109990.0,0.8355722]
[1748354840220,0.27862,110000.0,109990.0,0.8335722]
[1748354840425,0.27862,110000.0,109990.0,1.02827027]
[1748354840620,0.19472,110000.0,109990.0,1.47847027]
[1748354840924,0.084805,110000.0,109990.0,2.50979027]
[1748354841224,0.084805,110000.0,109990.0,2.60070227]
[1748354841526,0.084685,110000.0,109990.0,2.49034227]
[1748354841733,0.176305,110000.0,109990.0,2.3866922]
[1748354841935,0.261505,110000.0,109990.0,2.3866922]
[1748354843228,0.256505,110000.0,109990.0,2.3866922]
[1748354843426,0.259505,110000.0,109990.0,2.3866922]
[1748354843830,0.259505,110000.0,109990.0,1.9450922]
[1748354844036,0.4412355,110000.0,109990.0,1.7810522]
[1748354844431,0.259505,110000.0,109990.0,1.7810522]
[1748354845036,0.4412355,110000.0,109990.0,1.8643522]
[1748354845824,0.259505,110000.0,109990.0,1.8643522]
[1748354846031,0.249505,110000.0,109990.0,2.15405027]
[1748354846226,0.249505,110000.0,109990.0,1.9593522]
[1748354846429,0.249385,110000.0,109990.0,2.15405027]
[1748354846823,0.249505,110000.0,109990.0,2.15405027]
[1748354847031,0.249385,110000.0,109990.0,2.15405027]
[1748354847231,0.162305,110000.0,109990.0,2.47405027]
[1748354847536,0.080685,110000.0,109990.0,2.56496227]
[1748354848040,0.081405,110000.0,109990.0,2.56496227]
[1748354849641,0.081525,110000.0,109990.0,2.56496227]
[1748354850129,0.081525,110000.0,109990.0,3.00628227]
[1748354851938,0.081525,110000.0,109990.0,2.1690322]
[1748354852240,0.168825,110000.0,109990.0,2.0793522]
[1748354852538,0.251385,110000.0,109990.0,2.0793522]
[1748354853045,0.252105,110000.0,109990.0,2.27405027]
[1748354854629,0.252105,110000.0,109990.0,1.9690322]
[1748354854829,0.6938357,110000.0,109990.0,1.6975122]
[1748354855029,0.6938357,110000.0,109990.0,1.3367122]
[1748354855439,1.0546357,110000.0,109990.0,1.1549652]
[1748354855628,1.0546357,110000.0,109990.0,1.3367124]
[1748354856034,1.0546357,110000.0,109990.0,0.0133652]
[1748354856237,1.0546357,110000.0,109980.0,0.11089629]
[1748354856238,0.1817472,109990.0,109980.0,0.11089629]
[1748354856540,1.6112472,109990.0,109980.0,0.29265999]
[1748354857536,1.6152472,109990.0,109980.0,0.29265999]
[1748354858539,0.9903,109990.0,109980.0,0.30602519]
[1748354858734,0.9470473,109990.0,109980.0,0.30602519]
[1748354858940,1.3902073,109990.0,109980.0,0.30602519]
[1748354859343,1.3903273,109990.0,109980.0,0.30602519]
[1748354859743,0.76742,109990.0,109980.0,0.30602519]
[1748354859946,1.20846,109990.0,109980.0,0.30602519]
[1748354860137,1.3903272,109990.0,109980.0,0.30602519]
[1748354861550,1.3503272,109990.0,109980.0,0.30614519]
[1748354861852,1.16854,109990.0,109980.0,0.30614519]
[1748354862039,1.3502872,109990.0,109980.0,0.30614519]
[1748354862449,0.80774,109990.0,109980.0,0.30614519]
[1748354862650,0.9893672,109990.0,109980.0,0.30614519]
[1748354862843,0.80774,109990.0,109980.0,0.30614519]
[1748354863041,0.25662,109990.0,109980.0,0.30592611]
[1748354863246,0.25662,109990.0,109980.0,0.46762611]
[1748354863447,0.2565,109990.0,109980.0,0.46762611]
[1748354863634,0.25662,109990.0,109980.0,0.46762611]
[1748354864240,0.17602,109990.0,109980.0,0.82842611]
[1748354864450,0.1759,109990.0,109980.0,0.82842611]
[1748354864750,0.17602,109990.0,109980.0,0.91988756]
[1748354865549,0.17602,109990.0,109980.0,0.92530509]
[1748354865737,0.08982,109990.0,109980.0,1.24988756]
[1748354865934,0.0897,109990.0,109980.0,1.43742418]
[1748354866143,0.0897,109990.0,109980.0,1.10742418]
[1748354866345,0.1713,109990.0,109980.0,1.26818501]
[1748354866535,0.17142,109990.0,109980.0,1.26818501]
[1748354869948,0.3493646,110040.0,110030.0,1.02508908]
[1748354870146,0.3493646,110040.0,110030.0,0.66428908]
[1748354870342,0.3493646,110040.0,110030.0,0.4604334]
[1748354870343,0.3523646,110040.0,110030.0,0.4604334]
[1748354870857,0.3563646,110040.0,110030.0,0.4604334]
[1748354872154,0.3763646,110040.0,110030.0,0.4604334]
[1748354872550,0.3563646,110040.0,110030.0,0.46584185]
[1748354872957,0.17482,110040.0,110030.0,1.02133992]
[1748354873151,0.17482,110040.0,110030.0,1.33133992]
[1748354873358,0.09052,110040.0,110030.0,1.33133992]
[1748354873552,0.007,110040.0,110030.0,1.77402978]
[1748354873758,0.00712,110040.0,110030.0,1.77764487]
[1748354874060,0.007,110040.0,110030.0,1.77764487]
[1748354874259,0.00712,110040.0,110030.0,1.77764487]
[1748354874457,0.00136461,110060.0,110030.0,1.29138037]
[1748354874647,0.0802,110070.0,110060.0,0.1816316]
[1748354874954,0.05557459,110080.0,110070.0,0.1816152]
[1748354875159,0.1613,110080.0,110070.0,0.90661327]
[1748354875353,0.2213,110080.0,110070.0,0.90661327]
[1748354875864,0.4028987,110080.0,110070.0,0.8219152]
[1748354876057,0.4058987,110080.0,110070.0,0.8219152]
[1748354877155,0.4078987,110080.0,110070.0,0.8357583]
[1748354877452,0.4078987,110080.0,110070.0,0.1954583]
[1748354877453,0.3478987,110080.0,110070.0,0.1954583]
[1748354877659,1.0286987,110080.0,110070.0,0.1238431]
[1748354877846,1.4694587,110080.0,110070.0,0.1238431]
[1748354878356,1.4694587,110080.0,110070.0,0.3054583]
[1748354878758,1.0286987,110080.0,110070.0,0.3054583]
[1748354879646,0.1663,110080.0,110070.0,0.86095637]
[1748354879845,0.2263,110080.0,110070.0,0.94585637]
[1748354880052,0.22642,110080.0,110070.0,1.02345637]
[1748354880453,0.4078987,110080.0,110070.0,1.02345637]
[1748354880759,0.4078987,110080.0,110070.0,0.8287583]
[1748354880760,0.4080187,110080.0,110070.0,0.8287583]
[1748354880961,0.4080187,110080.0,110070.0,0.3054583]
[1748354881145,0.4080187,110080.0,110070.0,0.1954583]
[1748354881455,0.22642,110080.0,110070.0,0.6662183]
[1748354881659,0.22642,110080.0,110070.0,0.8298183]
[1748354881843,0.16642,110080.0,110070.0,1.02451637]
[1748354882046,0.3478987,110080.0,110070.0,1.02451637]
[1748354882254,0.3478987,110080.0,110070.0,0.8298183]
[1748354882255,0.3480187,110080.0,110070.0,0.8298183]
[1748354882649,0.3480187,110080.0,110070.0,0.7198583]
[1748354882857,0.3480187,110080.0,110070.0,0.8298183]
[1748354883260,0.3480187,110080.0,110070.0,0.3914183]
[1748354883447,0.7088187,110080.0,110070.0,0.0138431]
[1748354883648,0.9869187,110080.0,110070.0,0.2915752]
[1748354884452,0.9869187,110080.0,110070.0,0.13333554]
[1748354885563,0.9869187,110080.0,110070.0,0.1469501]
[1748354887352,0.9869187,110080.0,110070.0,0.1816152]
[1748354887554,0.1816152,110070.0,110060.0,0.18176609]
[1748354887765,1.3991352,110070.0,110060.0,0.00013629]
[1748354888063,1.59383327,110070.0,110060.0,0.00013629]
[1748354888647,1.59383327,110070.0,110060.0,0.01389841]
[1748354888955,1.59483327,110070.0,110060.0,0.01389841]
[1748354889459,1.93568927,110070.0,110060.0,0.01389841]
[1748354889662,0.1816482,110050.0,110040.0,0.31955048]
[1748354889849,0.1816482,110050.0,110040.0,0.36496588]
[1748354889850,1.3529282,110050.0,110040.0,0.36496588]
[1748354890355,0.4495,110050.0,110040.0,0.36496588]
[1748354890564,0.4495,110050.0,110040.0,0.55348588]
[1748354890565,0.0795,110050.0,110040.0,0.55348588]
[1748354890756,0.2611482,110050.0,110040.0,0.63208588]
[1748354891262,0.2641482,110050.0,110040.0,0.63208588]
[1748354891767,0.2841482,110050.0,110040.0,0.47468588]
[1748354891968,0.2841482,110050.0,110040.0,0.42927028]
[1748354892260,0.6479482,110050.0,110040.0,0.28757543]
[1748354892467,0.6479482,110050.0,110040.0,0.39729543]
[1748354892850,1.24694627,110050.0,110040.0,0.06050963]
[1748354893050,1.24694627,110050.0,110040.0,0.04706908]
[1748354893051,1.58781827,110050.0,110040.0,0.04706908]
[1748354895265,1.1431202,110050.0,110040.0,0.04706908]
[1748354896370,1.58781827,110050.0,110040.0,0.04706908]
[1748354897566,1.5835602,110050.0,110040.0,0.04706908]
[1748354898263,1.77825827,110050.0,110040.0,0.04706908]
[1748354898671,1.78745009,110050.0,110040.0,0.04706908]
[1748354899176,1.89713009,110050.0,110040.0,0.04706908]
[1748354900369,1.26203202,110050.0,110040.0,0.04706908]
[1748354900569,1.70247202,110050.0,110040.0,0.04706908]
[1748354901775,1.6932402,110050.0,110040.0,0.22873378]
[1748354901976,0.1816647,110040.0,110030.0,0.39956309]
[1748354902273,1.0247647,110040.0,110030.0,0.39956309]
[1748354902463,1.4651647,110040.0,110030.0,0.48026309]
[1748354903177,0.6639647,110040.0,110030.0,0.48026309]
[1748354903575,0.0802,110040.0,110030.0,0.6438826]
[1748354903770,0.6362886,110050.0,110040.0,0.1816647]
[1748354903771,0.8440042,110050.0,110040.0,0.1816647]
[1748354903966,0.8440042,110050.0,110040.0,0.4251647]
[1748354903967,1.4344042,110050.0,110040.0,0.4251647]
[1748354904171,1.4314042,110050.0,110040.0,0.4251647]
[1748354904448,0.9910042,110050.0,110040.0,0.4251647]
[1748354904680,1.4314042,110050.0,110040.0,0.4251647]
[1748354904876,1.4315242,110050.0,110040.0,0.4251647]
[1748354905064,1.4335242,110050.0,110040.0,0.4251647]
[1748354905264,1.6335242,110050.0,110040.0,0.4251647]
[1748354906676,1.6355242,110050.0,110040.0,0.4251647]
[1748354907276,0.8343242,110050.0,110040.0,0.4251647]
[1748354907577,1.4354842,110050.0,110040.0,0.4251647]
[1748354907778,1.1046842,110050.0,110040.0,0.4251647]
[1748354908076,1.2925538,110050.0,110040.0,0.4251647]
[1748354908577,1.4425538,110050.0,110040.0,0.4251647]
[1748354908775,1.1125538,110050.0,110040.0,0.4251647]
[1748354909181,1.1425538,110050.0,110040.0,0.4251647]
[1748354909474,1.5667538,110050.0,110040.0,0.1628]
[1748354910079,1.5667538,110050.0,110040.0,0.3444647]
[1748354911269,1.5667538,110050.0,110040.0,0.1628]
[1748354911471,1.5667538,110050.0,110040.0,0.3444647]
[1748354913680,1.5667538,110050.0,110040.0,0.34987259]
[1748354914071,1.6121694,110050.0,110040.0,0.1816647]
[1748354914280,0.1816647,110040.0,110030.0,0.60163895]
[1748354914487,1.0443647,110040.0,110030.0,0.59444492]
[1748354915279,0.34,110040.0,110030.0,0.95524492]
[1748354915469,0.0883,110050.0,110040.0,0.1816647]
[1748354915668,0.6258881,110050.0,110040.0,0.4301647]
[1748354916076,0.6258881,110050.0,110040.0,0.57481583]
[1748354916274,0.00412,110050.0,110040.0,0.7787886]
[1748354916476,0.00013629,110060.0,110050.0,0.1816482]
[1748354916773,0.00013629,110060.0,110050.0,1.01080627]
[1748354916973,0.00013629,110060.0,110050.0,1.01801074]
[1748354917377,0.00025629,110060.0,110050.0,1.01080627]
[1748354917583,0.00025629,110060.0,110050.0,1.0216163]
[1748354917971,0.00025629,110060.0,110050.0,0.82691823]
[1748354920685,0.00025629,110060.0,110050.0,0.83414139]
[1748354920917,0.00025629,110060.0,110050.0,0.72438139]
[1748354920918,0.18188789,110060.0,110050.0,0.72438139]
[1748354921089,0.91268789,110060.0,110050.0,0.45376389]
[1748354921381,1.51110789,110060.0,110050.0,0.6590227]
[1748354921783,1.51110789,110060.0,110050.0,0.55516658]
[1748354921990,1.51110789,110060.0,110050.0,0.64749387]
[1748354922583,1.51110789,110060.0,110050.0,0.55516658]
[1748354923181,1.51110789,110060.0,110050.0,0.64749349]
[1748354923382,1.51110789,110060.0,110050.0,0.55516658]
[1748354923882,1.51210789,110060.0,110050.0,0.55516658]
[1748354924289,1.51310789,110060.0,110050.0,0.55516658]
[1748354924586,1.51310789,110060.0,110050.0,0.65903478]
[1748354925392,1.07298789,110060.0,110050.0,0.65903478]
[1748354925690,0.97059629,110060.0,110050.0,0.65903478]
[1748354925881,1.31302789,110060.0,110050.0,0.65903478]
[1748354926131,0.79566789,110060.0,110050.0,0.65903478]
[1748354926388,0.79566789,110060.0,110050.0,0.50187134]
[1748354926389,0.43498789,110060.0,110050.0,0.50187134]
[1748354926584,0.43486789,110060.0,110050.0,0.50187134]
[1748354926785,0.43498789,110060.0,110050.0,0.56047743]
[1748354927182,0.43498789,110060.0,110050.0,0.66434563]
[1748354927379,0.43498789,110060.0,110050.0,0.65883023]
[1748354927689,0.43498789,110060.0,110050.0,0.67588561]
[1748354929585,0.43498789,110060.0,110050.0,0.59954813]
[1748354930085,0.43498789,110060.0,110050.0,0.60677129]
[1748354930291,0.35388789,110060.0,110050.0,1.16226936]
[1748354930478,0.00213629,110060.0,110050.0,1.16226936]
[1748354930681,0.00213629,110060.0,110050.0,1.16766327]
[1748354930682,0.18388789,110060.0,110050.0,1.16766327]
[1748354930895,0.18388789,110060.0,110050.0,1.16044011]
[1748354931191,0.18388789,110060.0,110050.0,1.16045017]
[1748354931490,0.18388789,110060.0,110050.0,0.9657521]
[1748354931691,0.18388789,110060.0,110050.0,0.92659668]
[1748354932290,0.00225629,110060.0,110050.0,0.96576521]
[1748354932592,0.18288789,110060.0,110050.0,0.96576521]
[1748354932789,0.18188789,110060.0,110050.0,0.96576521]
[1748354932990,0.08015629,110060.0,110050.0,0.96576521]
[1748354933291,0.00025629,110060.0,110050.0,0.96576521]
[1748354934094,0.00025629,110060.0,110050.0,1.60038328]
[1748354934287,0.00025629,110060.0,110050.0,1.51801386]
[1748354934609,0.00013629,110060.0,110050.0,1.51801386]
[1748354934793,0.00025629,110060.0,110050.0,1.57121672]
[1748354935195,0.00025629,110060.0,110050.0,1.38127112]
[1748354935395,0.08265629,110060.0,110050.0,0.94135112]
[1748354935696,0.16415629,110060.0,110050.0,0.74665305]
[1748354936592,0.16415629,110060.0,110050.0,0.55793584]
[1748354936986,0.16415629,110060.0,110050.0,0.73958394]
[1748354938388,0.16415629,110060.0,110050.0,0.89858394]
[1748354939089,0.16415629,110060.0,110050.0,0.85186628]
[1748354939288,0.08265629,110060.0,110050.0,0.85186628]
[1748354939490,0.08265629,110060.0,110050.0,0.79866342]
[1748354940300,0.08265629,110060.0,110050.0,1.09327401]
[1748354940596,0.00025629,110060.0,110050.0,1.41327401]
[1748354940793,0.6791287,110090.0,110080.0,0.1815986]
[1748354940996,1.1186203,110090.0,110080.0,0.2910786]
[1748354941193,1.50292571,110090.0,110080.0,0.3673786]
[1748354941494,0.52078351,110090.0,110080.0,0.3673786]
[1748354941691,0.62256561,110090.0,110080.0,0.7281786]
[1748354942091,0.69914561,110090.0,110080.0,0.8032786]
[1748354942298,0.69926561,110090.0,110080.0,0.8032786]
[1748354942797,0.52068351,110090.0,110080.0,0.99797667]
[1748354943100,0.16056351,110090.0,110080.0,1.08781961]
[1748354943397,0.15868351,110090.0,110080.0,1.40059412]
[1748354943595,0.15956351,110090.0,110080.0,1.40059412]
[1748354943791,0.15956351,110090.0,110080.0,1.07517667]
[1748354943990,0.34114561,110090.0,110080.0,0.9795432]
[1748354944197,0.38014561,110090.0,110080.0,0.90350596]
[1748354944493,0.19768351,110090.0,110080.0,1.09820403]
[1748354945092,0.15768351,110090.0,110080.0,1.09820403]
[1748354945286,0.15768351,110090.0,110080.0,1.23709749]
[1748354945596,0.15756351,110090.0,110080.0,1.23709749]
[1748354946687,0.33926561,110090.0,110080.0,0.87295577]
[1748354946894,0.16768351,110090.0,110080.0,0.81658808]
[1748354947092,0.16768351,110090.0,110080.0,0.92606808]
[1748354947799,0.16768351,110090.0,110080.0,1.31697361]
[1748354948501,0.16768351,110090.0,110080.0,1.31688559]
[1748354949693,0.34926561,110090.0,110080.0,1.24047705]
[1748354949894,0.16768351,110090.0,110080.0,1.24047705]
[1748354950100,0.34926561,110090.0,110080.0,1.24047705]
[1748354950290,0.16768351,110090.0,110080.0,1.24047705]
[1748354950489,0.34926561,110090.0,110080.0,1.24047705]
[1748354950894,0.96006561,110090.0,110080.0,0.35128994]
[1748354951094,1.03626561,110090.0,110080.0,0.35128994]
[1748354951301,1.03626561,110090.0,110080.0,0.24204994]
[1748354951501,1.03626561,110090.0,110080.0,0.30468513]
[1748354953396,1.03626561,110090.0,110080.0,0.31009217]
[1748354953907,0.15768351,110090.0,110080.0,0.50479024]
[1748354954100,0.15756351,110090.0,110080.0,1.10379024]
[1748354954299,0.15632,110090.0,110080.0,1.10379024]
[1748354954499,0.1562,110090.0,110080.0,1.10379024]
[1748354954699,0.15632,110090.0,110080.0,1.10379024]
[1748354954896,0.15632,110090.0,110080.0,0.90909217]
[1748354955402,0.15632,110090.0,110080.0,0.90368513]
[1748354955701,0.15632,110090.0,110080.0,1.9078632]
[1748354955896,0.10013629,110100.0,110090.0,0.1815821]